bitfinex/quotes_BTCUSD_20241011
["timestamp","ask_amount","ask_price","bid_price","bid_amount"]
[1728671469081,0.171799,62830.0,62829.0,0.00771639]
[1728671469345,0.01264,62830.0,62818.0,0.23245187]
[1728671469593,0.159167,62827.0,62820.0,0.39793766]
[1728671469869,0.01264,62830.0,62822.0,0.18487828]
[1728671470132,0.01484924,62829.0,62826.0,0.18487828]
[1728671470411,0.01484924,62828.0,62827.0,0.159164]
[1728671470667,0.01485146,62828.0,62827.0,0.09807453]
[1728671470920,0.00864,62830.0,62827.0,0.159167]
[1728671471190,0.00964,62830.0,62827.0,0.159167]
[1728671471451,0.001,62829.0,62827.0,0.159167]
[1728671471884,0.002,62828.0,62827.0,0.159167]
[1728671472555,0.002,62828.0,62826.0,0.34404728]
[1728671472771,0.001,62828.0,62826.0,0.34404728]
[1728671473192,0.00164,62830.0,62826.0,0.34404728]
[1728671473865,0.00164,62830.0,62826.0,0.18487828]
[1728671474768,0.00164,62830.0,62826.0,0.23520201]
[1728671475619,0.00164,62830.0,62827.0,0.00082]
[1728671477743,0.00264,62830.0,62827.0,0.00082]
[1728671477954,0.00264,62830.0,62827.0,0.00022192]
[1728671479418,0.1618,62830.0,62827.0,0.00022192]
[1728671479661,0.159164,62828.0,62827.0,0.00022192]
[1728671479871,0.17402969,62828.0,62827.0,0.00022192]
[1728671480938,0.17883747,62828.0,62827.0,0.00022192]
[1728671481551,0.18283747,62828.0,62827.0,0.00022192]
[1728671482681,0.16797178,62828.0,62827.0,0.00022192]
[1728671482897,0.18304444,62828.0,62827.0,0.00022192]
[1728671483300,0.02388044,62828.0,62827.0,0.00022192]
[1728671483501,0.18304444,62828.0,62827.0,0.00022192]
[1728671483909,0.02388044,62828.0,62827.0,0.00022192]
[1728671484720,0.01488044,62828.0,62827.0,0.00022192]
[1728671484923,0.01888044,62828.0,62827.0,0.00022192]
[1728671485326,0.01488044,62828.0,62827.0,0.00022192]
[1728671485601,0.01688044,62828.0,62827.0,0.00022192]
[1728671485938,0.01988044,62828.0,62827.0,0.00022192]
[1728671486406,0.01688044,62828.0,62827.0,0.00022192]
[1728671487115,0.01688044,62828.0,62827.0,0.24238892]
[1728671487273,0.01788044,62828.0,62827.0,0.36741624]
[1728671487760,0.003,62828.0,62827.0,0.36741624]
[1728671487963,0.002,62828.0,62827.0,0.36741624]
[1728671488373,0.00164,62830.0,62829.0,0.159162]
[1728671488577,0.00164,62830.0,62829.0,0.46275762]
[1728671489649,0.00164,62830.0,62829.0,0.62398163]
[1728671490275,9.00164,62830.0,62829.0,0.62398163]
[1728671491114,9.00164,62830.0,62829.0,0.50500458]
[1728671491783,9.00164,62830.0,62829.0,0.68670458]
[1728671494694,9.00164,62830.0,62829.0,0.75088234]
[1728671498293,9.00164,62830.0,62829.0,0.94948998]
[1728671498509,9.00164,62830.0,62829.0,1.04457307]
[1728671498713,9.00164,62830.0,62829.0,1.20594278]
[1728671499085,9.00164,62830.0,62829.0,1.11085969]
[1728671499319,9.00464,62830.0,62829.0,1.22971355]
[1728671499499,9.00464,62830.0,62829.0,1.16046138]
[1728671499700,9.00164,62830.0,62829.0,1.16316367]
[1728671500451,9.00164,62830.0,62829.0,1.09895957]
[1728671500661,9.00664,62830.0,62829.0,1.28463151]
[1728671501070,9.00264,62830.0,62829.0,1.28663151]
[1728671501983,8.58120036,62830.0,62829.0,1.23702982]
[1728671502236,8.58820036,62830.0,62829.0,1.33021748]
[1728671502705,8.58820036,62830.0,62829.0,1.33028367]
[1728671503445,8.58520036,62830.0,62829.0,1.33028367]
[1728671503711,8.58320036,62830.0,62829.0,1.33028367]
[1728671503946,8.58520036,62830.0,62829.0,1.33028367]
[1728671504900,8.58520036,62830.0,62829.0,1.23510105]
[1728671506359,8.58520036,62830.0,62829.0,1.33710105]
[1728671506841,8.55886572,62830.0,62829.0,1.33710105]
[1728671507095,8.47916322,62830.0,62829.0,1.33710105]
[1728671507334,8.47716322,62830.0,62829.0,1.33710105]
[1728671507570,8.47716322,62830.0,62829.0,0.96739717]
[1728671507807,8.47716322,62830.0,62829.0,1.33710105]
[1728671507808,8.47516322,62830.0,62829.0,1.33710105]
[1728671508269,8.47516322,62830.0,62829.0,1.33810105]
[1728671508503,8.47516322,62830.0,62829.0,1.45707933]
[1728671508737,8.47516322,62830.0,62829.0,1.33910105]
[1728671509004,8.47516322,62830.0,62829.0,0.96739717]
[1728671509277,8.47516322,62830.0,62829.0,0.79220053]
[1728671509538,8.47516322,62830.0,62829.0,0.86358127]
[1728671509748,8.47516322,62830.0,62829.0,0.96785183]
[1728671510582,8.47516322,62830.0,62829.0,0.81520053]
[1728671511012,8.47516322,62830.0,62829.0,0.97657024]
[1728671511831,8.47516322,62830.0,62829.0,1.04793001]
[1728671512246,8.47598322,62830.0,62829.0,1.04793001]
[1728671512447,8.47598322,62830.0,62829.0,0.97657024]
[1728671515366,8.47598322,62830.0,62829.0,1.04793001]
[1728671515612,8.47598322,62830.0,62829.0,0.68949824]
[1728671515835,8.47598322,62830.0,62829.0,0.00282]
[1728671516048,8.47598322,62830.0,62829.0,0.00202]
[1728671516254,8.57538322,62830.0,62829.0,0.00202]
[1728671516691,8.57538322,62830.0,62829.0,0.00102]
[1728671516922,8.57738322,62830.0,62829.0,0.00102]
[1728671517168,8.60121983,62830.0,62829.0,0.00102]
[1728671517381,8.60121983,62830.0,62829.0,2e-05]
[1728671517584,8.60121983,62830.0,62829.0,0.00202]
[1728671517792,8.60321983,62830.0,62829.0,0.00202]
[1728671518376,8.60121983,62830.0,62829.0,0.00202]
[1728671518529,8.57738322,62830.0,62829.0,0.00502]
[1728671518905,8.47798322,62830.0,62829.0,0.23102479]
[1728671519115,8.47798322,62830.0,62829.0,0.164182]
[1728671520421,8.47798322,62830.0,62829.0,0.00502]
[1728671520833,8.47798322,62830.0,62829.0,0.164182]
[1728671522503,8.47798322,62830.0,62829.0,0.23562399]
[1728671523391,8.47798322,62830.0,62829.0,0.478248]
[1728671523600,8.47798322,62830.0,62829.0,0.71071735]
[1728671523804,8.47798322,62830.0,62829.0,0.66893594]
[1728671524025,8.47798322,62830.0,62829.0,0.91603556]
[1728671524286,8.47798322,62830.0,62829.0,0.74036205]
[1728671524472,8.47798322,62830.0,62829.0,0.73736205]
[1728671524901,8.48198322,62830.0,62829.0,0.73736205]
[1728671525519,8.47998322,62830.0,62829.0,0.91092608]
[1728671525729,8.48498322,62830.0,62829.0,0.91092608]
[1728671526222,8.48498322,62830.0,62829.0,1.05093479]
[1728671526437,8.48498322,62830.0,62829.0,0.77084803]
[1728671528461,8.48498322,62830.0,62829.0,0.95569997]
[1728671528733,8.48498322,62830.0,62829.0,0.77084803]
[1728671529127,8.48498322,62830.0,62829.0,0.77089388]
[1728671529331,8.48498322,62830.0,62829.0,1.07467738]
[1728671529779,8.48498322,62830.0,62829.0,0.88982544]
[1728671531580,8.48498322,62830.0,62829.0,0.77089388]
[1728671532033,8.33988322,62830.0,62829.0,0.77089388]
[1728671532573,8.33988322,62830.0,62829.0,0.95574582]
[1728671533292,8.33988322,62830.0,62829.0,0.95844811]
[1728671533514,8.33988322,62830.0,62829.0,1.07742027]
[1728671533972,8.33988322,62830.0,62829.0,1.07747676]
[1728671534933,8.33588322,62830.0,62829.0,1.07947676]
[1728671535170,8.33088322,62830.0,62829.0,1.07747676]
[1728671535405,8.33088322,62830.0,62829.0,1.07947676]
[1728671536072,8.33088322,62830.0,62829.0,1.08147676]
[1728671537498,8.33088322,62830.0,62829.0,1.18147676]
[1728671539290,8.33088322,62830.0,62829.0,1.062506]
[1728671540746,6.80737684,62830.0,62829.0,0.99106401]
[1728671540927,6.80737684,62830.0,62829.0,1.28664395]
[1728671540928,6.33776183,62830.0,62829.0,1.28664395]
[1728671541065,6.11189635,62830.0,62829.0,1.28664395]
[1728671541267,6.11189635,62830.0,62829.0,1.33615449]
[1728671541461,5.95273635,62830.0,62829.0,1.29389536]
[1728671541664,5.95273635,62830.0,62829.0,1.29189536]
[1728671542105,5.95373635,62830.0,62829.0,1.11204342]
[1728671542344,5.95373635,62830.0,62829.0,1.4817473]
[1728671542544,5.95473635,62830.0,62829.0,1.4867473]
[1728671542746,5.92190435,62830.0,62829.0,1.33915449]
[1728671542959,5.85824035,62830.0,62829.0,1.33915449]
[1728671543162,5.85824035,62830.0,62829.0,1.34415449]
[1728671543163,5.79557635,62830.0,62829.0,1.34415449]
[1728671543360,5.79457635,62830.0,62829.0,1.33915449]
[1728671543569,5.76374435,62830.0,62829.0,1.34515449]
[1728671543783,5.17922061,62830.0,62829.0,1.29564395]
[1728671544466,5.14738861,62830.0,62829.0,1.29564395]
[1728671544675,5.14738861,62830.0,62829.0,1.18491595]
[1728671544896,5.14738861,62830.0,62829.0,1.30374412]
[1728671545137,5.14738861,62830.0,62829.0,1.18491595]
[1728671547755,5.14738861,62830.0,62829.0,1.18469069]
[1728671550556,5.14738861,62830.0,62829.0,1.18460718]
[1728671550557,4.59469687,62830.0,62829.0,1.18460718]
[1728671552942,4.59469687,62830.0,62829.0,0.99975524]
[1728671553582,4.59469687,62830.0,62829.0,0.8149033]
[1728671553791,4.59469687,62830.0,62829.0,1.11854773]
[1728671554043,4.59469687,62830.0,62829.0,0.99975524]
[1728671554257,4.59469687,62830.0,62829.0,1.11654773]
[1728671554464,4.59469687,62830.0,62829.0,0.99775524]
[1728671554672,4.59469687,62830.0,62829.0,0.99975524]
[1728671556719,4.59469687,62830.0,62829.0,0.8129033]
[1728671557142,4.59469687,62830.0,62829.0,0.81298077]
[1728671558707,4.59469687,62830.0,62829.0,0.71041707]
[1728671558928,4.59469687,62830.0,62829.0,0.33140601]
[1728671559465,4.59469687,62830.0,62829.0,0.32640601]
[1728671559466,4.59369687,62830.0,62829.0,0.32640601]
[1728671559933,4.59469687,62830.0,62829.0,0.3351083]
[1728671560166,4.59469687,62830.0,62829.0,0.4231083]
[1728671560411,4.59369687,62830.0,62829.0,0.4241083]
[1728671560650,4.59469687,62830.0,62829.0,0.4291083]
[1728671561124,4.59369687,62830.0,62829.0,0.4241083]
[1728671561349,4.59369687,62830.0,62829.0,0.4251083]
[1728671562855,4.59369687,62830.0,62829.0,0.3251083]
[1728671563091,4.59369687,62830.0,62829.0,0.32240601]
[1728671563325,4.59369687,62830.0,62829.0,0.3251083]
[1728671564497,4.59369687,62830.0,62829.0,0.57194783]
[1728671565641,4.59369687,62830.0,62829.0,0.50063931]
[1728671566281,4.59369687,62830.0,62829.0,0.50064415]
[1728671569410,4.59369687,62830.0,62829.0,0.59574929]
[1728671570060,4.59369687,62830.0,62829.0,0.593047]
[1728671570273,4.59369687,62830.0,62829.0,0.59574929]
[1728671571139,4.59369687,62830.0,62829.0,0.59573849]
[1728671571357,4.59369687,62830.0,62829.0,0.5930362]
[1728671575172,4.59369687,62830.0,62829.0,0.49793486]
[1728671578417,4.59369687,62830.0,62829.0,0.52093486]
[1728671578642,4.59369687,62830.0,62829.0,0.63976527]
[1728671578861,4.59369687,62830.0,62829.0,0.52093486]
[1728671579061,4.59369687,62830.0,62829.0,0.63976]
[1728671579266,4.59269687,62830.0,62829.0,0.51893486]
[1728671579475,4.59369687,62830.0,62829.0,0.64376119]
[1728671579671,4.59469687,62830.0,62829.0,0.64376119]
[1728671580094,4.59369687,62830.0,62829.0,0.63776119]
[1728671580512,4.59469687,62830.0,62829.0,0.52493486]
[1728671581198,4.59469687,62830.0,62829.0,0.64376119]
[1728671581624,4.59569687,62830.0,62829.0,0.53093486]
[1728671583031,4.59569687,62830.0,62829.0,0.64976058]
[1728671583405,4.59569687,62830.0,62829.0,0.53093486]
[1728671584189,4.59569687,62830.0,62829.0,0.64978305]
[1728671584586,4.59569687,62830.0,62829.0,0.53093486]
[1728671585478,4.59569687,62830.0,62829.0,0.64978112]
[1728671585895,4.59569687,62830.0,62829.0,0.53093486]
[1728671586512,4.59569687,62830.0,62829.0,0.61263486]
[1728671586722,4.59569687,62830.0,62829.0,0.61463486]
[1728671586943,4.59569687,62830.0,62829.0,0.83618341]
[1728671587157,4.50020087,62830.0,62829.0,0.83503715]
[1728671587392,4.50020087,62830.0,62829.0,1.3157616]
[1728671587996,4.49720087,62830.0,62829.0,1.3037616]
[1728671588420,4.46736887,62830.0,62829.0,1.50067769]
[1728671588825,4.43453687,62830.0,62829.0,1.49467769]
[1728671589084,4.33904087,62830.0,62829.0,1.49467769]
[1728671589231,4.30720887,62830.0,62829.0,1.49467769]
[1728671589433,4.27637687,62830.0,62829.0,1.50067769]
[1728671591493,4.27637687,62830.0,62829.0,1.68559378]
[1728671591714,4.11721687,62830.0,62829.0,1.63604733]
[1728671591947,4.11721687,62830.0,62829.0,1.68554591]
[1728671592430,4.08538487,62830.0,62829.0,1.82819792]
[1728671592655,4.08538487,62830.0,62829.0,1.68554591]
[1728671592915,3.75106378,62830.0,62829.0,1.68354591]
[1728671593143,3.75106378,62830.0,62829.0,1.68530744]
[1728671593144,3.71306549,62830.0,62829.0,1.68530744]
[1728671593384,3.58050672,62830.0,62829.0,1.68530744]
[1728671593603,3.47611381,62830.0,62829.0,1.68530744]
[1728671593839,3.3600879,62830.0,62829.0,1.68530744]
[1728671594056,2.32565895,62830.0,62829.0,1.69030744]
[1728671594274,2.27103173,62830.0,62829.0,1.67830744]
[1728671594490,2.09316123,62830.0,62829.0,1.69130744]
[1728671594717,2.03164226,62830.0,62829.0,1.70430744]
[1728671594906,1.88523421,62830.0,62829.0,1.67830744]
[1728671595317,1.83423013,62830.0,62829.0,1.70630744]
[1728671595525,1.69808226,62830.0,62829.0,1.70630744]
[1728671595724,1.69808226,62830.0,62829.0,1.69230744]
[1728671595725,1.65396005,62830.0,62829.0,1.69230744]
[1728671595936,1.65496005,62830.0,62829.0,1.70630744]
[1728671596346,1.43846405,62830.0,62829.0,1.91637086]
[1728671596544,1.43846405,62830.0,62829.0,1.69230744]
[1728671596545,1.37380005,62830.0,62829.0,1.69230744]
[1728671597175,0.82110831,62830.0,62829.0,1.69230744]
[1728671597377,0.78927631,62830.0,62829.0,1.69230744]
[1728671597588,0.66194831,62830.0,62829.0,1.31747526]
[1728671597796,0.66294831,62830.0,62829.0,1.51639135]
[1728671598213,0.66294831,62830.0,62829.0,1.51439135]
[1728671598416,0.66294831,62830.0,62829.0,1.51639135]
[1728671598631,0.66294831,62830.0,62829.0,1.46689277]
[1728671598833,0.66294831,62830.0,62829.0,1.44389277]
[1728671600197,0.66294831,62830.0,62829.0,1.46689277]
[1728671601095,0.66294831,62830.0,62829.0,1.65180886]
[1728671601561,0.66294831,62830.0,62829.0,1.46689277]
[1728671602381,0.63111631,62830.0,62829.0,1.46689277]
[1728671606942,0.63111631,62830.0,62829.0,1.29160239]
[1728671607149,0.63111631,62830.0,62829.0,1.51587896]
[1728671607591,0.63111631,62830.0,62829.0,1.65803124]
[1728671607725,0.63111631,62830.0,62829.0,1.51587896]
[1728671609501,0.59928431,62830.0,62829.0,1.51587896]
[1728671609704,0.59928431,62830.0,62829.0,1.57955896]
[1728671610671,0.59928431,62830.0,62829.0,1.5794803]
[1728671611781,0.59928431,62830.0,62829.0,1.4617803]
[1728671611995,0.59928431,62830.0,62829.0,1.25222547]
[1728671612224,0.59928431,62830.0,62829.0,1.02842821]
[1728671612633,0.59928431,62830.0,62829.0,1.02642821]
[1728671612835,0.59928431,62830.0,62829.0,1.02842821]
[1728671614112,0.59928431,62830.0,62829.0,1.02642821]
[1728671614370,0.59928431,62830.0,62829.0,1.02842821]
[1728671614553,0.59928431,62830.0,62829.0,1.16852547]
[1728671614880,0.59928431,62830.0,62829.0,0.84040347]
[1728671615131,0.59928431,62830.0,62829.0,2.07714247]
[1728671615366,0.59928431,62830.0,62829.0,2.28381747]
[1728671615566,0.59928431,62830.0,62829.0,2.46873356]
[1728671615767,0.59928431,62830.0,62829.0,2.3266363]
[1728671616429,0.40829231,62830.0,62829.0,2.3266363]
[1728671616633,0.28096431,62830.0,62829.0,2.4029363]
[1728671617215,0.28096431,62830.0,62829.0,2.54504867]
[1728671617432,0.28096431,62830.0,62829.0,2.69865239]
[1728671617433,0.12180531,62830.0,62829.0,2.69865239]
[1728671617633,0.001642,62831.0,62830.0,0.00970229]
[1728671617824,0.001642,62831.0,62830.0,6.64250621]
[1728671618037,0.001642,62831.0,62830.0,6.8872756]
[1728671618373,1e-06,62831.0,62830.0,7.09707793]
[1728671618782,1e-06,62831.0,62830.0,6.8872756]
[1728671619193,1e-06,62831.0,62830.0,7.11107793]
[1728671619562,1e-06,62831.0,62830.0,6.9012756]
[1728671620161,1e-06,62831.0,62830.0,7.12506672]
[1728671620373,1e-06,62831.0,62830.0,6.9012756]
[1728671620608,0.23875466,62843.0,62842.0,0.28483129]
[1728671620821,0.23875466,62843.0,62842.0,0.67025321]
[1728671621234,0.0792,62844.0,62843.0,0.28482829]
[1728671621438,0.0792,62844.0,62843.0,0.62088758]
[1728671621645,0.0792,62844.0,62843.0,0.67034358]
[1728671622584,0.0792,62844.0,62843.0,0.67734358]
[1728671623212,0.0792,62844.0,62843.0,0.68434358]
[1728671623423,0.0792,62844.0,62843.0,0.68634358]
[1728671623854,0.1209,62847.0,62846.0,0.16182129]
[1728671624061,0.1209,62847.0,62846.0,0.52088058]
[1728671624514,0.1209,62847.0,62846.0,0.63937179]
[1728671624939,0.1209,62847.0,62846.0,0.52088058]
[1728671625650,0.1209,62847.0,62846.0,0.52488058]
[1728671625896,0.1209,62847.0,62846.0,0.52909271]
[1728671627444,0.1209,62847.0,62846.0,0.64764334]
[1728671627693,0.1209,62847.0,62846.0,0.57858541]
[1728671628555,0.1209,62847.0,62846.0,0.72084617]
[1728671629455,0.1209,62847.0,62846.0,0.57858541]
[1728671630319,0.0798,62848.0,62847.0,0.16181829]
[1728671630562,0.0798,62848.0,62847.0,0.57064557]
[1728671631176,0.0748,62848.0,62847.0,0.57064557]
[1728671631812,0.0748,62848.0,62847.0,0.57364557]
[1728671632227,0.0748,62848.0,62847.0,0.52715287]
[1728671632647,0.07460774,62848.0,62847.0,0.57663585]
[1728671632857,0.07460774,62848.0,62847.0,0.59148121]
[1728671633070,0.23875466,62857.0,62856.0,0.159093]
[1728671633197,0.38325466,62857.0,62856.0,0.17606937]
[1728671633406,0.38325466,62857.0,62856.0,0.4063641]
[1728671633606,0.1445,62857.0,62856.0,0.4063641]
[1728671633816,0.1445,62857.0,62856.0,0.13033437]
[1728671634415,0.1445,62857.0,62856.0,0.46679974]
[1728671634622,0.1445,62857.0,62856.0,0.48979974]
[1728671634851,0.1445,62862.0,62861.0,0.159081]
[1728671635088,0.1445,62862.0,62861.0,0.32030501]
[1728671635595,0.2231,62862.0,62861.0,0.32030501]
[1728671636411,0.2231,62862.0,62861.0,0.59144478]
[1728671636612,0.2231,62862.0,62861.0,0.49651438]
[1728671637210,0.2231,62862.0,62861.0,0.59145373]
[1728671637435,0.2231,62862.0,62861.0,0.49751438]
[1728671638314,0.2231,62862.0,62861.0,0.59245797]
[1728671638525,0.2231,62862.0,62861.0,0.49751438]
[1728671638730,0.2231,62862.0,62861.0,0.49651438]
[1728671639443,0.2231,62862.0,62861.0,0.33743338]
[1728671639650,0.2231,62862.0,62861.0,0.33643338]
[1728671639862,0.2231,62862.0,62861.0,0.4955363]
[1728671640091,0.2231,62862.0,62861.0,0.39151561]
[1728671640360,0.2231,62862.0,62861.0,0.4076793]
[1728671640564,0.2231,62862.0,62861.0,0.5667603]
[1728671641653,0.2231,62862.0,62861.0,0.4076793]
[1728671641867,0.0786,62861.0,62859.0,0.0712106]
[1728671642081,0.18501609,62864.0,62857.0,0.2303006]
[1728671642082,0.40801609,62860.0,62857.0,0.2303006]
[1728671642299,0.2231,62860.0,62859.0,0.04749405]
[1728671642510,0.2231,62860.0,62859.0,0.20658005]
[1728671642720,0.2231,62860.0,62857.0,0.23243461]
[1728671642934,0.2231,62860.0,62859.0,0.04750064]
[1728671643581,0.2231,62860.0,62859.0,0.04749455]
[1728671643793,0.2231,62860.0,62859.0,0.1753147]
[1728671644434,0.2231,62860.0,62859.0,0.27025482]
[1728671644621,0.2231,62860.0,62859.0,0.09494012]
[1728671644860,0.2231,62860.0,62859.0,0.27025482]
[1728671645797,0.2231,62860.0,62859.0,0.09494012]
[1728671646441,0.40801609,62860.0,62859.0,0.09494012]
[1728671647704,0.40883609,62860.0,62859.0,0.09494012]
[1728671647885,0.41283609,62860.0,62859.0,0.09494012]
[1728671654537,0.41283609,62860.0,62858.0,0.07128286]
[1728671654538,0.39918371,62859.0,62858.0,0.07128286]
[1728671654751,0.0798,62858.0,62857.0,0.07128286]
[1728671654963,0.39918571,62858.0,62857.0,0.07128286]
[1728671655182,0.09918571,62858.0,62855.0,0.047528]
[1728671655405,0.57645371,62858.0,62857.0,0.047528]
[1728671655647,0.41736571,62858.0,62856.0,0.047528]
[1728671655853,0.41736571,62858.0,62851.0,0.047528]
[1728671655854,0.159095,62856.0,62851.0,0.047528]
[1728671656728,0.159095,62856.0,62853.0,0.047528]
[1728671656947,0.18491609,62854.0,62852.0,0.047528]
[1728671657169,0.18491609,62853.0,62852.0,0.047528]
[1728671657378,0.18491609,62853.0,62851.0,0.04753418]
[1728671657586,0.41736571,62858.0,62851.0,0.04753418]
[1728671657587,0.18491609,62852.0,62851.0,0.04753418]
[1728671658026,0.18491609,62852.0,62850.0,0.04753418]
[1728671658250,0.0767,62852.0,62851.0,0.002]
[1728671658502,0.18491609,62851.0,62850.0,0.04753418]
[1728671659463,0.33821609,62851.0,62850.0,0.04753418]
[1728671659647,0.1533,62851.0,62850.0,0.04753418]
[1728671660320,0.1533,62851.0,62850.0,0.04853418]
[1728671660537,0.1533,62851.0,62849.0,0.04753418]
[1728671660872,0.18491609,62850.0,62849.0,0.04753418]
[1728671661482,0.18491609,62850.0,62846.0,0.07130128]
[1728671661483,0.18491609,62850.0,62846.0,0.04753418]
[1728671661724,0.1583,62851.0,62845.0,0.04753418]
[1728671661725,0.18491609,62847.0,62845.0,0.04753418]
[1728671661971,0.18491609,62847.0,62845.0,0.36787919]
[1728671662195,0.18491609,62847.0,62846.0,0.159119]
[1728671662410,0.18501609,62847.0,62846.0,0.159119]
[1728671663554,0.18701609,62847.0,62846.0,0.159119]
[1728671664092,0.19001609,62847.0,62846.0,0.159119]
[1728671665403,0.19001609,62847.0,62846.0,0.40576001]
[1728671665778,0.19001609,62847.0,62846.0,0.33449649]
[1728671667041,0.19001609,62847.0,62846.0,0.40575157]
[1728671667280,0.19001609,62847.0,62846.0,0.33449649]
[1728671667511,0.19001609,62847.0,62846.0,0.40574839]
[1728671667971,0.0051,62847.0,62846.0,0.33449649]
[1728671668190,0.0051,62847.0,62846.0,0.159119]
[1728671669102,0.0051,62847.0,62846.0,0.33445112]
[1728671669727,0.0031,62847.0,62846.0,0.33445112]
[1728671669933,0.0001,62847.0,62846.0,0.33445112]
[1728671670576,0.0001,62847.0,62846.0,0.40568286]
[1728671670784,0.0031,62847.0,62846.0,0.40568286]
[1728671671016,0.0031,62847.0,62846.0,0.40564693]
[1728671671944,0.0031,62847.0,62846.0,0.40560195]
[1728671672434,0.0051,62847.0,62846.0,0.40560195]
[1728671673392,0.0051,62847.0,62846.0,0.40724195]
[1728671678026,0.0021,62847.0,62846.0,0.40724195]
[1728671678491,0.0041,62847.0,62846.0,0.40724195]
[1728671678736,0.0021,62847.0,62846.0,0.40724195]
[1728671678966,0.0031,62847.0,62846.0,0.40724195]
[1728671679461,0.0021,62847.0,62846.0,0.40724195]
[1728671679701,0.0001,62847.0,62846.0,0.40724195]
[1728671679932,0.28872109,62847.0,62846.0,0.00164]
[1728671680661,0.41022618,62847.0,62846.0,0.00164]
[1728671681184,0.28872109,62847.0,62846.0,0.00164]
[1728671681438,0.28672109,62847.0,62846.0,0.00164]
[1728671681676,0.28872109,62847.0,62846.0,0.00564]
[1728671681925,0.28872109,62847.0,62846.0,0.02050841]
[1728671682167,0.28672109,62847.0,62846.0,0.02050841]
[1728671682426,0.28672109,62847.0,62846.0,0.02550841]
[1728671682671,0.3471476,62847.0,62846.0,0.02550841]
[1728671684117,0.3471476,62847.0,62846.0,0.01064]
[1728671684334,0.3471476,62847.0,62846.0,0.02551254]
[1728671687761,0.3471476,62847.0,62846.0,0.02550578]
[1728671690706,0.162216,62847.0,62846.0,0.02550578]
[1728671690940,0.3471476,62847.0,62846.0,0.02550578]
[1728671694551,0.3471476,62847.0,62846.0,0.02550095]
[1728671698006,0.3471476,62847.0,62846.0,0.01064]
[1728671698205,0.3471476,62847.0,62846.0,0.05522069]
[1728671700673,0.162216,62847.0,62846.0,0.05522069]
[1728671700966,0.3471476,62847.0,62846.0,0.05522069]
[1728671702890,0.28675364,62847.0,62846.0,0.05522069]
[1728671703103,0.28675364,62847.0,62846.0,0.02550023]
[1728671705821,0.12763764,62847.0,62846.0,0.02550023]
[1728671706097,0.0031,62847.0,62846.0,0.46308493]
[1728671706313,0.0031,62847.0,62846.0,0.48686779]
[1728671706579,0.12763764,62847.0,62846.0,0.68620593]
[1728671707456,0.12763764,62847.0,62846.0,0.6713457]
[1728671707668,0.12763764,62847.0,62846.0,0.68621643]
[1728671708308,0.12763764,62847.0,62846.0,0.59108502]
[1728671708513,0.12763764,62847.0,62846.0,0.68623386]
[1728671708720,0.12763764,62847.0,62846.0,0.68630757]
[1728671709584,0.12763764,62847.0,62846.0,0.43203534]
[1728671709829,0.12763764,62847.0,62846.0,0.59115434]
[1728671710783,0.0031,62847.0,62846.0,0.59115434]
[1728671711021,0.0031,62847.0,62846.0,0.87132589]
[1728671711269,0.0031,62847.0,62846.0,0.75238436]
[1728671711946,0.0001,62847.0,62846.0,0.74838436]
[1728671712587,0.0001,62847.0,62846.0,0.74338436]
[1728671712812,0.0051,62847.0,62846.0,0.74338436]
[1728671713684,0.0091,62847.0,62846.0,0.74338436]
[1728671716620,0.0091,62847.0,62846.0,0.27434135]
[1728671716621,0.13363764,62847.0,62846.0,0.27434135]
[1728671716829,0.13363764,62847.0,62846.0,0.34568413]
[1728671717040,0.13363764,62847.0,62846.0,0.27434135]
[1728671717260,0.13363764,62847.0,62846.0,0.36944932]
[1728671717943,0.13363764,62847.0,62846.0,0.50480179]
[1728671718134,0.13363764,62847.0,62846.0,0.50474293]
[1728671718353,0.13363764,62847.0,62846.0,0.34562511]
[1728671718586,0.13363764,62847.0,62846.0,0.09870146]
[1728671719439,0.29275364,62847.0,62846.0,0.01650146]
[1728671719659,0.29275364,62847.0,62846.0,0.06406506]
[1728671720082,0.41729128,62847.0,62846.0,0.06406506]
[1728671720285,0.41729128,62847.0,62846.0,0.01650146]
[1728671720707,0.43218526,62847.0,62846.0,0.01650146]
[1728671721121,0.42318526,62847.0,62846.0,0.01650146]
[1728671721327,0.42318526,62847.0,62846.0,0.02050146]
[1728671721541,0.42318526,62847.0,62846.0,0.00564]
[1728671722392,0.42318526,62847.0,62846.0,0.00664]
[1728671722812,0.42318448,62847.0,62846.0,0.00164]
[1728671723237,0.42318448,62847.0,62846.0,0.00264]
[1728671724306,0.40829128,62847.0,62846.0,0.00264]
[1728671724507,0.42318074,62847.0,62846.0,0.00264]
[1728671726635,0.79759823,62847.0,62846.0,0.00264]
[1728671727289,0.73120475,62847.0,62846.0,0.00264]
[1728671728616,0.28368664,62834.0,62833.0,0.23875466]
[1728671729090,0.159154,62832.0,62831.0,0.00164]
[1728671729596,0.159152,62833.0,62831.0,0.00164]
[1728671730526,0.002,62832.0,62831.0,0.00164]
[1728671731491,0.002,62832.0,62831.0,0.388697]
[1728671731773,0.002,62832.0,62831.0,0.64094229]
[1728671731983,0.5224223,62842.0,62833.0,0.0816]
[1728671732207,0.159132,62841.0,62837.0,0.0816]
[1728671732429,0.23875466,62842.0,62837.0,0.0816]
[1728671732635,0.23875466,62842.0,62840.0,0.1463]
[1728671733054,0.34400625,62845.0,62840.0,0.305434]
[1728671733292,0.18488425,62845.0,62841.0,0.159131]
[1728671733492,0.34400525,62845.0,62840.0,0.305434]
[1728671733716,0.004,62842.0,62840.0,0.305434]
[1728671734663,0.004,62842.0,62840.0,0.1463]
[1728671735118,0.34401525,62841.0,62840.0,0.1463]
[1728671735360,0.34401525,62841.0,62837.0,0.0816]
[1728671735361,0.18488425,62841.0,62837.0,0.0816]
[1728671735621,0.159139,62838.0,62837.0,0.0816]
[1728671736054,0.18488425,62841.0,62840.0,0.001]
[1728671736263,0.34401525,62841.0,62840.0,0.001]
[1728671736615,0.159135,62840.0,62837.0,0.0816]
[1728671736820,0.159135,62840.0,62837.0,0.0866]
[1728671737319,0.159139,62838.0,62837.0,0.0866]
[1728671737523,0.159139,62838.0,62837.0,0.005]
[1728671738092,0.318269,62840.0,62831.0,0.00164]
[1728671738303,0.34403825,62832.0,62831.0,0.00164]
[1728671738906,0.34403825,62832.0,62831.0,0.0043923]
[1728671739967,0.34603825,62832.0,62831.0,0.0043923]
[1728671740419,0.18688425,62832.0,62831.0,0.0043923]
[1728671741081,0.18988425,62832.0,62831.0,0.0043923]
[1728671742997,0.18988425,62832.0,62831.0,0.00697911]
[1728671744594,0.164154,62832.0,62831.0,0.00697911]
[1728671744875,0.164154,62832.0,62831.0,0.00164]
[1728671744876,0.32537801,62832.0,62831.0,0.00164]
[1728671745070,0.43237801,62832.0,62831.0,0.00164]
[1728671745272,0.66087801,62832.0,62831.0,0.00164]